bitfinex/quotes_BTCUSD_20250703
["timestamp","ask_amount","ask_price","bid_price","bid_amount"]
[1751542893414,0.00129871,109880.0,109870.0,0.73484366]
[1751542894143,0.00129871,109880.0,109870.0,0.64682518]
[1751542894384,0.00129871,109880.0,109870.0,0.34801117]
[1751542894612,0.00129871,109880.0,109870.0,0.64682518]
[1751542895023,0.00129871,109880.0,109870.0,0.34801117]
[1751542895238,0.00129871,109880.0,109870.0,0.64682518]
[1751542895444,0.00129871,109880.0,109870.0,0.68317234]
[1751542895946,0.00129871,109880.0,109870.0,0.38435833]
[1751542896139,0.00129871,109880.0,109870.0,0.68317234]
[1751542897878,0.00129871,109880.0,109870.0,0.49789234]
[1751542898086,0.00129871,109880.0,109870.0,0.69767319]
[1751542898295,0.00129871,109880.0,109870.0,0.72491704]
[1751542903775,0.00129871,109880.0,109870.0,0.42610303]
[1751542903993,0.00129871,109880.0,109870.0,0.72491704]
[1751542907883,0.00129871,109880.0,109870.0,0.7248736]
[1751542911818,0.00129871,109880.0,109870.0,0.69762975]
[1751542914127,0.00129871,109880.0,109870.0,0.69764003]
[1751542914934,0.00129871,109880.0,109870.0,0.75216077]
[1751542918175,0.00129871,109880.0,109870.0,0.71581361]
[1751542919762,0.002,109890.0,109870.0,0.71581361]
[1751542920060,0.002,109890.0,109880.0,0.36250478]
[1751542920267,0.002,109890.0,109880.0,0.05342037]
[1751542920443,0.002,109890.0,109880.0,0.09567063]
[1751542921160,0.003,109890.0,109880.0,0.09567063]
[1751542921365,0.00204703,109890.0,109880.0,0.38464579]
[1751542921603,0.00204703,109890.0,109880.0,0.38237059]
[1751542921827,0.00304703,109890.0,109880.0,0.38637059]
[1751542922052,0.00304703,109890.0,109880.0,0.56326911]
[1751542922274,0.00304703,109890.0,109880.0,0.82568839]
[1751542922506,0.00304703,109890.0,109880.0,0.81715341]
[1751542922746,0.00304703,109890.0,109880.0,0.22152539]
[1751542922972,0.00304703,109890.0,109880.0,0.5203394]
[1751542923400,0.00304703,109890.0,109880.0,0.52887785]
[1751542925680,0.00304703,109890.0,109880.0,0.51247785]
[1751542926540,0.00304703,109890.0,109880.0,0.54890518]
[1751542927169,0.00304703,109890.0,109880.0,0.51247785]
[1751542927377,0.00304703,109890.0,109880.0,0.54890343]
[1751542928774,0.00304703,109890.0,109880.0,0.31412126]
[1751542928978,0.01894703,109890.0,109880.0,0.61293527]
[1751542931720,0.01894703,109890.0,109880.0,0.6129358]
[1751542931924,0.00304703,109890.0,109880.0,0.6129358]
[1751542933034,0.00304703,109890.0,109880.0,0.59291022]
[1751542933922,0.00304703,109890.0,109880.0,0.89172423]
[1751542934143,0.00304703,109890.0,109880.0,0.59291022]
[1751542934596,0.03315888,109900.0,109880.0,0.59291022]
[1751542934816,0.03315888,109900.0,109890.0,0.06374282]
[1751542935019,0.03315888,109900.0,109890.0,0.09575829]
[1751542935710,0.03415888,109900.0,109890.0,0.09575829]
[1751542937065,0.03315888,109900.0,109890.0,0.09575829]
[1751542937267,0.03415888,109900.0,109890.0,0.09975829]
[1751542938073,0.01765888,109900.0,109890.0,0.4008473]
[1751542938273,0.00115888,109900.0,109890.0,0.37125395]
[1751542938860,0.01705888,109900.0,109890.0,0.07243994]
[1751542939435,0.01705888,109900.0,109890.0,0.09975519]
[1751542940487,0.01605888,109900.0,109890.0,0.09675519]
[1751542940854,0.01705888,109900.0,109890.0,0.09975519]
[1751542941060,0.01705888,109900.0,109890.0,0.09975577]
[1751542943162,0.00115888,109900.0,109890.0,0.48900671]
[1751542943401,0.00115888,109900.0,109890.0,0.49229146]
[1751542944233,0.00115888,109900.0,109890.0,0.19347745]
[1751542944651,0.00115888,109900.0,109890.0,0.49429146]
[1751542944855,0.00115888,109900.0,109890.0,0.57066131]
[1751542945682,0.00115888,109900.0,109890.0,0.2718473]
[1751542945889,0.00115888,109900.0,109890.0,0.57066131]
[1751542947337,0.00115888,109900.0,109890.0,0.5706575]
[1751542950068,0.00115888,109900.0,109890.0,0.25634349]
[1751542950458,0.00115888,109900.0,109890.0,0.5551575]
[1751542953383,0.00115888,109900.0,109890.0,0.25634349]
[1751542953597,0.00115888,109900.0,109890.0,0.5551575]
[1751542956286,0.00115888,109900.0,109890.0,0.28369549]
[1751542956627,0.00115888,109900.0,109890.0,0.5825095]
[1751542958209,0.00115888,109900.0,109890.0,0.26859549]
[1751542958440,0.03305888,109900.0,109890.0,0.33512656]
[1751542959103,0.03305888,109900.0,109890.0,0.14980656]
[1751542959315,0.03305888,109900.0,109890.0,0.33508656]
[1751542962348,0.01655888,109900.0,109890.0,0.33508656]
[1751542962917,0.01655888,109900.0,109890.0,0.63390057]
[1751542964663,0.01655888,109900.0,109890.0,0.14980656]
[1751542965262,0.01655888,109900.0,109890.0,0.14340475]
[1751542965412,0.01655888,109900.0,109890.0,0.14980898]
[1751542965640,0.01655888,109900.0,109890.0,0.44862299]
[1751542967459,0.00115888,109900.0,109890.0,0.44862299]
[1751542969131,0.00115888,109900.0,109890.0,0.4486333]
[1751542969537,0.00115888,109900.0,109890.0,0.41220883]
[1751542969743,0.00115888,109900.0,109890.0,0.44864485]
[1751542969951,0.00115888,109900.0,109890.0,0.41220883]
[1751542970362,0.00115888,109900.0,109890.0,0.41220881]
[1751542972200,0.00115888,109900.0,109890.0,0.41220935]
[1751542975232,0.00115888,109900.0,109890.0,0.40366938]
[1751542975597,0.00115888,109900.0,109890.0,0.41220997]
[1751542976464,0.00115888,109900.0,109890.0,0.44864802]
[1751542976882,0.03385888,109900.0,109890.0,0.14983401]
[1751542977091,0.01725888,109900.0,109890.0,0.14983401]
[1751542977747,0.00115888,109900.0,109890.0,0.14983401]
[1751542977920,0.00115888,109900.0,109890.0,0.44864802]
[1751542978519,0.00115888,109900.0,109890.0,0.44864968]
[1751542980909,0.00115888,109900.0,109890.0,0.14983567]
[1751542981103,0.00115888,109900.0,109890.0,0.44864974]
[1751542981412,0.00115888,109900.0,109890.0,0.41221169]
[1751542983695,0.00115888,109900.0,109890.0,0.41221214]
[1751542983892,0.00115888,109900.0,109890.0,0.11339813]
[1751542986716,0.00115888,109900.0,109890.0,0.11339843]
[1751542988150,0.03275888,109900.0,109890.0,0.11339843]
[1751542988321,0.03275888,109900.0,109890.0,0.29855843]
[1751542988472,0.03275888,109900.0,109890.0,0.1498447]
[1751542989554,0.03275888,109900.0,109890.0,0.09532396]
[1751542990957,0.03275888,109900.0,109890.0,0.12265427]
[1751542997342,0.49523466,109900.0,109890.0,0.05887769]
[1751542998206,0.49523466,109900.0,109890.0,0.05687769]
[1751542998961,0.99243819,109900.0,109890.0,0.05687769]
[1751542999598,0.96139934,109900.0,109890.0,0.05687769]
[1751543000039,0.96039934,109900.0,109890.0,0.05387769]
[1751543000249,0.96139934,109900.0,109890.0,0.05587769]
[1751543000674,0.96039934,109900.0,109890.0,0.05387769]
[1751543000889,0.96139934,109900.0,109890.0,0.05487769]
[1751543001037,0.96239934,109900.0,109890.0,0.05487769]
[1751543002564,1.0495761,109900.0,109890.0,0.05487769]
[1751543003156,1.0495761,109900.0,109890.0,0.03302858]
[1751543004425,0.96239934,109900.0,109890.0,0.03302858]
[1751543007207,0.96239934,109900.0,109890.0,0.0159471]
[1751543009096,0.96239934,109900.0,109890.0,0.01576811]
[1751543009897,0.96239934,109900.0,109890.0,0.01575408]
[1751543014482,0.96239934,109900.0,109890.0,0.001]
[1751543014748,1.05383627,109900.0,109890.0,0.00739245]
[1751543014985,0.96239934,109900.0,109890.0,0.00739245]
[1751543017662,0.96239934,109900.0,109890.0,0.00739426]
[1751543021121,0.96239934,109900.0,109890.0,0.01592342]
[1751543021339,1.19363934,109900.0,109890.0,0.01592342]
[1751543022225,1.17763934,109900.0,109890.0,0.01592342]
[1751543023277,1.17763934,109900.0,109890.0,0.03776577]
[1751543023400,1.26907627,109900.0,109890.0,0.03776577]
[1751543023807,1.26907627,109900.0,109890.0,0.03776882]
[1751543025033,1.16191934,109900.0,109890.0,0.03776882]
[1751543025689,1.19351934,109900.0,109890.0,0.03776882]
[1751543025893,1.19351934,109900.0,109890.0,0.03777734]
[1751543027884,1.19351934,109900.0,109890.0,0.0359774]
[1751543028988,1.17781934,109900.0,109890.0,0.0359774]
[1751543030978,1.26925627,109900.0,109890.0,0.0359774]
[1751543032986,1.26925627,109900.0,109890.0,0.02185087]
[1751543033100,1.26925627,109900.0,109890.0,0.03039359]
[1751543034599,1.28555627,109900.0,109890.0,0.03039359]
[1751543035798,1.2946547,109900.0,109890.0,0.03039359]
[1751543036052,6.4446547,109900.0,109890.0,0.00854272]
[1751543036260,0.34,109880.0,109870.0,0.06377658]
[1751543036460,0.5779,109880.0,109870.0,0.09423499]
[1751543036810,0.5779,109880.0,109870.0,0.05778872]
[1751543037388,0.5789,109880.0,109870.0,0.06378872]
[1751543039271,0.5789,109880.0,109870.0,0.03645841]
[1751543039484,0.5789,109880.0,109870.0,0.03645657]
[1751543039816,0.5789,109880.0,109870.0,0.04286311]
[1751543040690,0.52672,109880.0,109870.0,0.04286311]
[1751543043092,0.52672,109880.0,109870.0,0.05994535]
[1751543043505,0.52672,109880.0,109870.0,0.05994234]
[1751543051950,0.63335693,109880.0,109870.0,0.05994234]
[1751543052151,0.64885693,109880.0,109870.0,0.05994234]
[1751543052352,0.72965256,109880.0,109870.0,0.05994234]
[1751543052929,0.72965256,109880.0,109870.0,0.03807485]
[1751543053155,0.72865256,109880.0,109870.0,0.03407485]
[1751543053507,0.73065256,109880.0,109870.0,0.03507485]
[1751543053707,0.73065256,109880.0,109870.0,0.03307485]
[1751543054028,0.73165256,109880.0,109870.0,0.03307485]
[1751543055128,1.22885609,109880.0,109870.0,0.03307485]
[1751543058028,1.22885609,109880.0,109870.0,0.02666831]
[1751543058452,1.27433609,109880.0,109870.0,0.02666831]
[1751543059078,1.27433609,109880.0,109870.0,0.00958607]
[1751543059626,1.27433609,109880.0,109870.0,0.01810307]
[1751543061145,0.77713256,109880.0,109870.0,0.01810307]
[1751543062238,0.77713256,109880.0,109870.0,0.02663048]
[1751543065162,0.77713256,109880.0,109870.0,0.02663133]
[1751543070216,0.77713256,109880.0,109870.0,0.02664111]
[1751543072458,0.77713256,109880.0,109870.0,0.03304156]
[1751543072658,0.77713256,109880.0,109870.0,0.03304152]
[1751543073807,0.77713256,109880.0,109870.0,0.03304451]
[1751543074345,0.76163256,109880.0,109870.0,0.03304451]
[1751543077527,0.76163256,109880.0,109870.0,0.03304641]
[1751543082166,0.77753256,109880.0,109870.0,0.03304641]
[1751543083221,0.77753256,109880.0,109870.0,0.00958328]
[1751543083222,5.94573315,109880.0,109870.0,0.00958328]
[1751543083481,5.98220373,109880.0,109870.0,0.00958328]
[1751543084041,5.97310315,109880.0,109870.0,0.00958328]
[1751543084758,0.98220365,109880.0,109870.0,0.00958328]
[1751543084977,5.64290693,109880.0,109870.0,0.00958328]
[1751543085110,5.84236693,109880.0,109870.0,0.00958328]
[1751543085308,5.85836693,109880.0,109870.0,0.00958328]
[1751543085532,5.87376693,109880.0,109870.0,0.00958328]
[1751543086772,5.85836693,109880.0,109870.0,0.00958328]
[1751543086978,5.94980386,109880.0,109870.0,0.00958328]
[1751543091268,5.95890395,109880.0,109870.0,0.00958328]
[1751543091684,5.97470395,109880.0,109870.0,0.00958328]
[1751543092576,5.9838042,109880.0,109870.0,0.00958328]
[1751543092797,5.9929047,109880.0,109870.0,0.00958377]
[1751543093002,5.99290462,109880.0,109870.0,0.00958377]
[1751543093241,5.9838042,109880.0,109870.0,0.00958377]
[1751543093660,5.99290454,109880.0,109870.0,0.00958377]
[1751543095406,5.9838042,109880.0,109870.0,0.00958377]
[1751543096437,5.99290462,109880.0,109870.0,0.00958377]
[1751543097329,0.99290462,109880.0,109870.0,0.00958377]
[1751543097532,5.9838042,109880.0,109870.0,0.00958377]
[1751543098298,5.99290462,109880.0,109870.0,0.00958377]
[1751543098777,5.9838042,109880.0,109870.0,0.00958377]
[1751543098978,5.9838042,109880.0,109870.0,0.00958324]
[1751543100315,5.98380412,109880.0,109870.0,0.00958324]
[1751543100548,5.97470395,109880.0,109870.0,0.00958324]
[1751543101243,5.97470395,109880.0,109870.0,0.00958332]
[1751543101717,5.96560386,109880.0,109870.0,0.00958332]
[1751543101954,5.70324386,109880.0,109870.0,0.00958332]
[1751543102171,5.93480386,109880.0,109870.0,0.02458332]
[1751543103250,5.93480386,109880.0,109870.0,0.00958332]
[1751543104122,5.94390395,109880.0,109870.0,0.00958332]
[1751543104326,5.93480386,109880.0,109870.0,0.00958332]
[1751543109018,5.94390395,109880.0,109870.0,0.00958332]
[1751543109461,5.93480386,109880.0,109870.0,0.00958332]
[1751543110168,5.94390395,109880.0,109870.0,0.00958332]
[1751543110370,6.16270395,109880.0,109870.0,0.00958332]
[1751543110583,6.15360386,109880.0,109870.0,0.00958332]
[1751543110786,6.16270395,109880.0,109870.0,0.00958332]
[1751543111074,6.15360386,109880.0,109870.0,0.00958332]
[1751543111289,6.15360386,109880.0,109870.0,0.0266704]
[1751543111612,6.16270395,109880.0,109870.0,0.0266704]
[1751543111851,6.15360386,109880.0,109870.0,0.0266704]
[1751543112311,6.16270403,109880.0,109870.0,0.0266704]
[1751543112516,6.17900403,109880.0,109870.0,0.0266704]
[1751543112720,6.20350437,109880.0,109870.0,0.0266704]
[1751543113957,6.19440403,109880.0,109870.0,0.0266704]
[1751543114080,6.17900403,109880.0,109870.0,0.0266704]
[1751543114486,6.19540403,109880.0,109870.0,0.0266704]
[1751543114914,6.17900403,109880.0,109870.0,0.02668752]
[1751543115734,6.1881042,109880.0,109870.0,0.02668752]
[1751543115912,6.18810429,109880.0,109870.0,0.02668752]
[1751543116285,6.17900395,109880.0,109870.0,0.02668752]
[1751543117122,6.1881042,109880.0,109870.0,0.02668752]
[1751543117252,1.17900395,109880.0,109870.0,0.02668752]
[1751543117469,6.17900395,109880.0,109870.0,0.02668752]
[1751543118765,6.1881042,109880.0,109870.0,0.02668752]
[1751543118976,6.17900395,109880.0,109870.0,0.02668752]
[1751543119599,6.17900395,109880.0,109870.0,0.02668758]
[1751543120722,6.18810412,109880.0,109870.0,0.02668762]
[1751543120934,6.17900395,109880.0,109870.0,0.02668762]
[1751543121502,6.17900395,109880.0,109870.0,0.02688762]
[1751543122848,6.17900395,109880.0,109870.0,0.02688765]
[1751543123636,6.15360386,109880.0,109870.0,0.02688765]
[1751543126535,6.16270403,109880.0,109870.0,0.02688729]
[1751543126741,6.18780437,109880.0,109870.0,0.02688729]
[1751543126925,6.20300437,109880.0,109870.0,0.02688729]
[1751543127132,6.20300428,109880.0,109870.0,0.02688729]
[1751543128100,6.20312428,109880.0,109870.0,0.02688729]
[1751543128307,6.20312428,109880.0,109870.0,0.12688729]
[1751543128731,6.2122247,109880.0,109870.0,0.12688729]
[1751543128935,6.20312428,109880.0,109870.0,0.12688729]
[1751543129751,6.19402403,109880.0,109870.0,0.12688729]
[1751543129979,6.19402395,109880.0,109870.0,0.12688729]
[1751543130199,6.20312412,109880.0,109870.0,0.12688729]
[1751543130700,6.21222446,109880.0,109870.0,0.12688729]
[1751543130922,6.20312412,109880.0,109870.0,0.12688729]
[1751543131499,6.21222437,109880.0,109870.0,0.12688729]
[1751543132965,6.20312412,109880.0,109870.0,0.12688729]
[1751543133204,6.18792412,109880.0,109870.0,0.12688729]
[1751543133874,6.18792412,109880.0,109870.0,0.10979378]
[1751543134564,1.18792412,109880.0,109870.0,0.10979378]
[1751543134794,6.18792412,109880.0,109870.0,0.10979378]
[1751543135223,6.19702446,109880.0,109870.0,0.10979378]
[1751543135504,6.18792412,109880.0,109870.0,0.10979378]
[1751543137110,6.19702437,109880.0,109870.0,0.10979378]
[1751543141425,6.19702437,109880.0,109870.0,0.10124703]
[1751543141640,6.18102437,109880.0,109870.0,0.10979354]
[1751543143596,6.19012479,109880.0,109870.0,0.10979354]
[1751543143778,6.18102437,109880.0,109870.0,0.10979354]
[1751543144969,6.19012479,109880.0,109870.0,0.10979354]
[1751543145726,6.18102437,109880.0,109870.0,0.10979354]
[1751543146774,6.19012479,109880.0,109870.0,0.10979354]
[1751543146994,6.18102437,109880.0,109870.0,0.10979354]
[1751543147271,6.19012471,109880.0,109870.0,0.10979354]
[1751543149882,6.18102437,109880.0,109870.0,0.10979354]
[1751543150660,1.18102437,109880.0,109870.0,0.10979354]
[1751543150972,6.17192412,109880.0,109870.0,0.10979354]
[1751543151785,6.17192412,109880.0,109870.0,0.12609354]
[1751543152195,6.17192412,109880.0,109870.0,0.10979354]
[1751543153424,6.17192412,109880.0,109870.0,0.12629354]
[1751543153658,6.17192412,109880.0,109870.0,0.12629357]
[1751543155210,6.18102454,109880.0,109870.0,0.12629357]
[1751543158186,6.18102454,109880.0,109870.0,0.12629357]
[1751543158397,6.19922587,109880.0,109870.0,0.10979357]
[1751543158613,6.19012512,109880.0,109870.0,0.10979357]
[1751543158787,6.19922587,109880.0,109870.0,0.10979357]
[1751543158923,6.19012512,109880.0,109870.0,0.10979357]
[1751543159133,6.19922579,109880.0,109870.0,0.10979357]
[1751543159345,6.19012512,109880.0,109870.0,0.10979357]
[1751543159758,6.19922587,109880.0,109870.0,0.10979357]
[1751543161041,6.19012512,109880.0,109870.0,0.10979357]
[1751543161856,6.18102454,109880.0,109870.0,0.10979357]
[1751543162047,6.19012512,109880.0,109870.0,0.10979357]
[1751543162458,6.18984512,109880.0,109870.0,0.10979357]
[1751543162744,6.19894579,109880.0,109870.0,0.10979357]
[1751543163747,6.19894645,109880.0,109870.0,0.10979357]
[1751543164366,1.19894645,109880.0,109870.0,0.10979357]
[1751543164591,1.37186244,109880.0,109870.0,0.10979357]
[1751543164827,6.38426202,109880.0,109870.0,0.08034398]
[1751543165039,6.38426202,109880.0,109870.0,0.03036102]
[1751543165680,6.38326202,109880.0,109870.0,0.02181403]
[1751543165884,6.38326202,109880.0,109870.0,0.01344403]
[1751543166098,0.15,109860.0,109850.0,0.03144403]
[1751543166299,0.47860734,109860.0,109850.0,0.04639494]
[1751543166714,0.50597934,109860.0,109850.0,0.04639494]
[1751543167346,0.51508108,109860.0,109850.0,0.04639494]
[1751543167887,0.51508108,109860.0,109850.0,0.04639358]
[1751543167888,0.52518307,109860.0,109850.0,0.04639358]
[1751543168086,0.52518299,109860.0,109850.0,0.03049358]
[1751543168299,0.51608108,109860.0,109850.0,0.03049358]
[1751543168712,0.52518299,109860.0,109850.0,0.03049358]
[1751543168931,0.85608108,109860.0,109850.0,0.04757479]
[1751543169133,0.85608108,109860.0,109850.0,0.04316726]
[1751543169466,0.85708108,109860.0,109850.0,0.04316726]
[1751543169678,0.82970908,109860.0,109850.0,0.04316726]
[1751543169883,0.82060734,109860.0,109850.0,0.04316726]
[1751543170246,0.82970908,109860.0,109850.0,0.04316726]
[1751543171460,0.82970908,109860.0,109850.0,0.04336726]
[1751543172073,0.82060734,109860.0,109850.0,0.04336726]
[1751543173873,0.82970925,109860.0,109850.0,0.04336726]
[1751543174298,0.82970917,109860.0,109850.0,0.04336726]
[1751543174511,0.87510917,109860.0,109850.0,0.04336726]
[1751543174737,0.86600734,109860.0,109850.0,0.04336726]
[1751543176143,0.81427693,109860.0,109850.0,0.05986726]
[1751543180203,0.81427693,109860.0,109850.0,0.05984414]
[1751543186024,0.81427693,109860.0,109850.0,0.05984628]
[1751543188540,0.81467693,109860.0,109850.0,0.05984628]
[1751543189266,0.81467693,109860.0,109850.0,0.05984999]
[1751543189466,0.90133191,109860.0,109850.0,0.05984999]
[1751543190432,0.90133191,109860.0,109850.0,0.04334999]
[1751543190632,0.90133191,109860.0,109850.0,0.04335395]
[1751543192440,0.90133191,109860.0,109850.0,0.04336077]
[1751543193219,0.90133191,109860.0,109850.0,0.04976683]
[1751543198370,0.90133191,109860.0,109850.0,0.04978734]
[1751543203282,0.90133191,109860.0,109850.0,0.03269208]
[1751543204567,0.90133191,109860.0,109850.0,0.0327025]
[1751543207858,0.90125191,109860.0,109850.0,0.0327025]
[1751543210563,0.90125191,109860.0,109850.0,0.0327028]
[1751543212286,0.90125191,109860.0,109850.0,0.01715877]
[1751543212770,0.91945556,109860.0,109850.0,0.01715877]
[1751543212982,0.91035365,109860.0,109850.0,0.01715877]
[1751543213192,0.91945556,109860.0,109850.0,0.01715877]
[1751543213409,0.94275365,109860.0,109850.0,0.01715877]
[1751543213618,0.94275365,109860.0,109850.0,0.01715839]
[1751543213826,0.95185548,109860.0,109850.0,0.01715839]
[1751543215471,0.93605548,109860.0,109850.0,0.01715839]
[1751543216609,0.93605548,109860.0,109850.0,0.01074749]
[1751543216753,1.11125747,109860.0,109850.0,0.01074749]
[1751543218360,1.11125739,109860.0,109850.0,0.01074749]
[1751543219109,1.09515739,109860.0,109850.0,0.01074749]
[1751543219311,1.10425946,109860.0,109850.0,0.01074749]
[1751543219521,1.09515739,109860.0,109850.0,0.01074749]
[1751543219747,1.10115548,109860.0,109850.0,0.01074564]
[1751543219954,1.08605548,109860.0,109850.0,0.01074564]
[1751543220316,1.09515747,109860.0,109850.0,0.01074564]
[1751543220718,1.08605548,109860.0,109850.0,0.01074564]
[1751543221179,1.09515747,109860.0,109850.0,0.01074564]
[1751543221841,1.08605548,109860.0,109850.0,0.01074564]
[1751543222286,1.09515747,109860.0,109850.0,0.01074564]
[1751543222490,1.12035954,109860.0,109850.0,0.01074564]
[1751543222901,1.11125747,109860.0,109850.0,0.01074564]
[1751543223870,1.12035963,109860.0,109850.0,0.01074564]
[1751543224701,1.11125747,109860.0,109850.0,0.01074564]
[1751543224992,1.14773363,109860.0,109850.0,0.01074564]
[1751543225626,0.3554,109850.0,109820.0,0.01971387]
[1751543225873,0.34,109830.0,109820.0,0.02612187]
[1751543226156,0.38536,109830.0,109820.0,0.02612187]
[1751543227137,0.38536,109830.0,109820.0,0.03026239]
[1751543227374,0.38536,109830.0,109820.0,0.02626239]
[1751543227820,0.38736,109830.0,109820.0,0.03226239]
[1751543227997,0.38736,109830.0,109820.0,0.03326239]
[1751543228409,0.38736,109830.0,109820.0,0.03226239]
[1751543228611,0.38736,109830.0,109820.0,0.06786239]
[1751543228817,0.444632,109830.0,109820.0,0.06786239]
[1751543230366,0.11659452,109830.0,109820.0,0.06786239]
[1751543230487,0.05932252,109830.0,109820.0,0.06786239]
[1751543233889,0.05932252,109830.0,109820.0,0.06785964]
[1751543235549,0.05932252,109830.0,109820.0,0.07696544]
[1751543235886,0.05932252,109830.0,109820.0,0.26818735]
[1751543236107,0.05932252,109830.0,109820.0,0.27729299]
[1751543236516,0.05932252,109830.0,109820.0,0.26838735]
[1751543237447,0.05932252,109830.0,109820.0,0.27108774]
[1751543237657,0.05932252,109830.0,109820.0,0.2619821]
[1751543238136,0.05932252,109830.0,109820.0,0.27108774]
[1751543238571,0.05932252,109830.0,109820.0,0.2619821]
[1751543238923,0.05932252,109830.0,109820.0,0.27692787]
[1751543240979,0.05932252,109830.0,109820.0,0.26782215]
[1751543241177,0.05932252,109830.0,109820.0,0.27692787]
[1751543241811,0.05932252,109830.0,109820.0,0.07660016]
[1751543242043,0.39932252,109830.0,109820.0,0.07660016]
[1751543242256,0.39932252,109830.0,109820.0,0.05688629]
[1751543242846,0.39932252,109830.0,109820.0,0.05688815]
[1751543243261,0.39932252,109830.0,109820.0,0.24811006]
[1751543244359,0.39932252,109830.0,109820.0,0.24811014]
[1751543244974,0.39932252,109830.0,109820.0,0.05688815]
[1751543245393,0.39932252,109830.0,109820.0,0.06599395]
[1751543245819,0.39932252,109830.0,109820.0,0.05688815]
[1751543247308,0.39932252,109830.0,109820.0,0.24811014]
[1751543247511,0.39932252,109830.0,109820.0,0.25721578]
[1751543248399,0.39932252,109830.0,109820.0,0.25721586]
[1751543248621,0.39932252,109830.0,109820.0,0.2663215]
[1751543249763,0.39932252,109830.0,109820.0,0.27542706]
[1751543249962,0.39932252,109830.0,109820.0,0.2663215]
[1751543250798,0.39932252,109830.0,109820.0,0.26632007]
[1751543251399,0.39932252,109830.0,109820.0,0.27542563]
[1751543251601,0.39932252,109830.0,109820.0,0.26632007]
[1751543251825,0.39932252,109830.0,109820.0,0.27542563]
[1751543252029,0.39932252,109830.0,109820.0,0.26632007]
[1751543252233,0.39932252,109830.0,109820.0,0.25721443]
[1751543253266,0.39972252,109830.0,109820.0,0.25721443]
[1751543253885,0.39972252,109830.0,109820.0,0.06599252]
[1751543254095,0.39972252,109830.0,109820.0,0.25721443]
[1751543254853,0.39972252,109830.0,109820.0,0.24810871]
[1751543255058,0.39972252,109830.0,109820.0,0.25721443]
[1751543255567,0.39972252,109830.0,109820.0,0.26632007]
[1751543255769,0.42676443,109830.0,109820.0,0.24810871]
[1751543255988,0.42676443,109830.0,109820.0,0.26632007]
[1751543257056,0.42676443,109830.0,109820.0,0.24810871]
[1751543257267,0.42676443,109830.0,109820.0,0.25721443]
[1751543258187,0.42676443,109830.0,109820.0,0.24810871]
[1751543258492,0.42676443,109830.0,109820.0,0.25721443]
[1751543259721,0.42676443,109830.0,109820.0,0.24810871]
[1751543260070,0.42676443,109830.0,109820.0,0.25721443]
[1751543260624,0.47270514,109830.0,109820.0,0.05688672]
[1751543260871,0.47270514,109830.0,109820.0,0.02528672]
[1751543261780,0.42676443,109830.0,109820.0,0.02528672]
[1751543262346,0.45856443,109830.0,109820.0,0.02528672]
[1751543263155,0.45856443,109830.0,109820.0,0.02128672]
[1751543263687,0.45856443,109830.0,109820.0,0.02428672]
[1751543264614,0.55000136,109830.0,109820.0,0.02428672]
[1751543264822,0.6365375,109830.0,109820.0,0.01828672]
[1751543265034,0.6365375,109830.0,109820.0,0.00974603]
[1751543265245,0.70968036,109830.0,109820.0,0.01828597]
[1751543265452,0.71878467,109830.0,109820.0,0.01188046]
[1751543265655,0.71168036,109830.0,109820.0,0.01588046]
[1751543266071,0.70968036,109830.0,109820.0,0.01188046]
[1751543266277,0.71878459,109830.0,109820.0,0.01188046]
[1751543266483,0.71168036,109830.0,109820.0,0.01488046]
[1751543266696,0.71878459,109830.0,109820.0,0.01188046]
[1751543266943,0.71878459,109830.0,109820.0,0.01388046]
[1751543267154,0.71068036,109830.0,109820.0,0.01388046]
[1751543268530,0.71068036,109830.0,109820.0,0.01088046]
[1751543268950,0.71068036,109830.0,109820.0,0.01188046]
[1751543269364,0.71068036,109830.0,109820.0,0.01088046]
[1751543270366,0.73420136,109830.0,109820.0,0.01088046]
[1751543283700,0.48704136,109830.0,109820.0,0.01088046]
[1751543284085,0.71756136,109830.0,109820.0,0.01088046]
[1751543284521,0.71756136,109830.0,109820.0,0.02794442]
[1751543284873,0.73276136,109830.0,109820.0,0.02794442]
[1751543285080,0.82419829,109830.0,109820.0,0.02794442]
[1751543288396,0.47184136,109830.0,109820.0,0.03434567]
[1751543288598,0.70232136,109830.0,109820.0,0.03434567]
[1751543290575,0.71762136,109830.0,109820.0,0.03434567]
[1751543292421,0.70232136,109830.0,109820.0,0.03434567]
[1751543292648,0.71782136,109830.0,109820.0,0.03434567]
[1751543292856,0.80925829,109830.0,109820.0,0.03434567]
[1751543295396,0.80925829,109830.0,109820.0,0.01728171]
[1751543299503,0.82575829,109830.0,109820.0,0.01728171]
[1751543299709,0.64055829,109830.0,109820.0,0.01728171]
[1751543299920,0.82571829,109830.0,109820.0,0.01728171]
[1751543303787,0.82571829,109830.0,109820.0,0.01729222]
[1751543311190,0.82571829,109830.0,109820.0,0.0172922]
[1751543313045,0.82571829,109830.0,109820.0,0.01730123]
[1751543319285,0.82571829,109830.0,109820.0,0.0173012]
[1751543322282,0.82571829,109830.0,109820.0,0.01730114]
[1751543322477,0.80921829,109830.0,109820.0,0.01730114]
[1751543323096,0.70212136,109830.0,109820.0,0.01730114]
[1751543325498,0.71712136,109830.0,109820.0,0.01730105]
[1751543334464,0.71712136,109830.0,109820.0,0.01730149]
[1751543337290,0.48684136,109830.0,109820.0,0.01730149]
[1751543337491,0.71704136,109830.0,109820.0,0.01730149]
[1751543337744,0.80847829,109830.0,109820.0,0.01730149]
[1751543340533,0.70204136,109830.0,109820.0,0.00875215]
[1751543340755,0.70204136,109830.0,109820.0,0.0173018]
[1751543342603,0.70204136,109830.0,109820.0,0.01730134]
[1751543342806,0.72204136,109830.0,109820.0,0.01730134]
[1751543343602,0.49184136,109830.0,109820.0,0.01730134]
[1751543343804,0.72204136,109830.0,109820.0,0.01730134]
[1751543344410,0.81347829,109830.0,109820.0,0.01730134]
[1751543344607,0.81347829,109830.0,109820.0,0.03439879]
[1751543346600,0.82987829,109830.0,109820.0,0.03439879]
[1751543348803,0.82987829,109830.0,109820.0,0.03439752]
[1751543350333,0.82987829,109830.0,109820.0,0.03439672]
[1751543351034,0.82987829,109830.0,109820.0,0.02798546]
[1751543351278,0.80987829,109830.0,109820.0,0.00798546]
[1751543351917,0.80987829,109830.0,109810.0,0.24975702]
[1751543352120,0.57967829,109830.0,109820.0,0.0002]
[1751543352331,0.80979829,109830.0,109820.0,0.0002]
[1751543354620,0.80979829,109830.0,109820.0,0.0093058]
[1751543354836,0.82549829,109830.0,109820.0,0.00661113]
[1751543355478,0.82549829,109830.0,109820.0,0.20693884]
[1751543355893,0.82549829,109830.0,109820.0,0.19783312]
[1751543356307,0.82549829,109830.0,109820.0,0.20693884]
[1751543356768,0.82549829,109830.0,109820.0,0.19783312]
[1751543357626,0.82549829,109830.0,109820.0,0.20693884]
[1751543358332,0.82549829,109830.0,109820.0,0.19783312]
[1751543358961,0.59537829,109830.0,109820.0,0.19783312]
[1751543359193,0.70192136,109830.0,109820.0,0.22213876]
[1751543359440,0.70192136,109830.0,109820.0,0.22213884]
[1751543360278,0.70192136,109830.0,109820.0,0.23124448]
[1751543360524,0.70192136,109830.0,109820.0,0.24034995]
[1751543360734,0.79335829,109830.0,109820.0,0.24035004]